[Event "*** SCC Grand Prix: Titled Tuesday Blitz"]
[Site "Chess.com"]
[Date "2020.08.04"]
[Round "1"]
[White "KatarinaOstojic"]
[Black "volcanoexplorer"]
[Result "0-1"]
[WhiteElo "2213"]
[BlackElo "2556"]
[TimeControl "180+1"]
[EndTime "13:46:28 PDT"]
[Termination "volcanoexplorer won by resignation"]

1. d4 {[%clk 0:03:00.9]} 1... Nf6 {[%clk 0:02:59.4]} 2. Nf3 {[%clk 0:03:01.4]}
2... e6 {[%clk 0:02:59.3]} 3. c4 {[%clk 0:03:01.1]} 3... b6 {[%clk 0:02:59.8]}
4. g3 {[%clk 0:03:00.7]} 4... Ba6 {[%clk 0:02:59.4]} 5. b3 {[%clk 0:03:00.3]}
5... Bb4+ {[%clk 0:02:58.9]} 6. Bd2 {[%clk 0:03:00.4]} 6... Be7 {[%clk
0:02:59.6]} 7. Bg2 {[%clk 0:03:00.2]} 7... c6 {[%clk 0:02:59.4]} 8. O-O {[%clk
0:03:00.6]} 8... d5 {[%clk 0:02:58.7]} 9. Ne5 {[%clk 0:03:00]} 9... Nfd7 {[%clk
0:02:54.1]} 10. Nxd7 {[%clk 0:02:54.7]} 10... Nxd7 {[%clk 0:02:53.8]} 11. cxd5
{[%clk 0:02:55.6]} 11... cxd5 {[%clk 0:02:51.8]} 12. Nc3 {[%clk 0:02:56.1]}
12... O-O {[%clk 0:02:48.4]} 13. Re1 {[%clk 0:02:56.4]} 13... Rc8 {[%clk
0:02:44]} 14. e3 {[%clk 0:02:56.2]} 14... Bb4 {[%clk 0:02:34.7]} 15. Rc1 {[%clk
0:02:55]} 15... Ba3 {[%clk 0:02:34.8]} 16. Rb1 {[%clk 0:02:53.7]} 16... Bd3
{[%clk 0:02:33.8]} 17. Nb5 {[%clk 0:02:47.5]} 17... Bxb5 {[%clk 0:02:32.6]} 0-1

[Event "*** SCC Grand Prix: Titled Tuesday Blitz"]
[Site "Chess.com"]
[Date "2020.08.04"]
[Round "1"]
[White "Anna_ChessMate"]
[Black "ellatambien"]
[Result "0-1"]
[WhiteElo "2603"]
[BlackElo "2321"]
[TimeControl "180+1"]
[EndTime "13:46:30 PDT"]
[Termination "ellatambien won by resignation"]

1. d4 {[%clk 0:02:58.5]} 1... Nf6 {[%clk 0:02:58.9]} 2. c4 {[%clk 0:02:54.1]}
2... e6 {[%clk 0:02:58]} 3. Nf3 {[%clk 0:02:48.8]} 3... c5 {[%clk 0:02:56.3]} 4.
Nc3 {[%clk 0:02:47.4]} 4... cxd4 {[%clk 0:02:53.1]} 5. Bg5 {[%clk 0:02:47.9]}
5... dxc3 {[%clk 0:02:51.2]} 6. bxc3 {[%clk 0:02:48.8]} 6... Be7 {[%clk
0:02:50.5]} 7. e3 {[%clk 0:02:49.2]} 7... O-O {[%clk 0:02:50.4]} 8. Bd3 {[%clk
0:02:49.7]} 8... b6 {[%clk 0:02:49.3]} 9. O-O {[%clk 0:02:49.4]} 9... Bb7 {[%clk
0:02:48.9]} 10. a4 {[%clk 0:02:49.9]} 10... Nc6 {[%clk 0:02:48.3]} 11. Bc2
{[%clk 0:02:48.4]} 11... g6 {[%clk 0:02:46]} 12. Nd4 {[%clk 0:02:45.8]} 12...
Nxd4 {[%clk 0:02:44.6]} 13. cxd4 {[%clk 0:02:46.7]} 13... Rc8 {[%clk 0:02:44.2]}
14. Bd3 {[%clk 0:02:47.1]} 14... Ne4 {[%clk 0:02:43.5]} 15. Bh6 {[%clk 0:02:46]}
15... Re8 {[%clk 0:02:43.1]} 16. Qf3 {[%clk 0:02:44.6]} 16... Nc5 {[%clk
0:02:37.4]} 0-1

[Event "*** SCC Grand Prix: Titled Tuesday Blitz"]
[Site "Chess.com"]
[Date "2020.08.04"]
[Round "1"]
[White "Lupul_Cenusiu"]
[Black "harkerchess"]
[Result "1-0"]
[WhiteElo "2515"]
[BlackElo "2114"]
[TimeControl "180+1"]
[EndTime "13:46:43 PDT"]
[Termination "Lupul_Cenusiu won by resignation"]

1. d4 {[%clk 0:03:00.6]} 1... d5 {[%clk 0:02:59.5]} 2. c4 {[%clk 0:02:59.6]}
2... c6 {[%clk 0:02:59]} 3. Nc3 {[%clk 0:02:59.4]} 3... Nf6 {[%clk 0:02:58.6]}
4. Nf3 {[%clk 0:02:59.1]} 4... dxc4 {[%clk 0:02:58.7]} 5. g3 {[%clk 0:02:57.3]}
5... b5 {[%clk 0:02:55.9]} 6. Bg2 {[%clk 0:02:57.3]} 6... Qb6 {[%clk 0:02:55.3]}
7. Ne5 {[%clk 0:02:52.1]} 7... e6 {[%clk 0:02:53.9]} 8. a4 {[%clk 0:02:51.5]}
8... Bb7 {[%clk 0:02:51.4]} 9. O-O {[%clk 0:02:43.1]} 9... Be7 {[%clk
0:02:50.2]} 10. b3 {[%clk 0:02:36.4]} 10... cxb3 {[%clk 0:02:47.2]} 11. Qxb3
{[%clk 0:02:36.1]} 11... Qc7 {[%clk 0:02:46.4]} 12. Bf4 {[%clk 0:02:32.2]} 12...
Qc8 {[%clk 0:02:42.7]} 13. axb5 {[%clk 0:02:30.2]} 13... O-O {[%clk 0:02:39.8]}
14. Rfc1 {[%clk 0:02:29.3]} 14... cxb5 {[%clk 0:02:35.2]} 15. Nxb5 {[%clk
0:02:28.7]} 15... Nc6 {[%clk 0:02:34.2]} 16. Bxc6 {[%clk 0:02:24.6]} 1-0

[Event "*** SCC Grand Prix: Titled Tuesday Blitz"]
[Site "Chess.com"]
[Date "2020.08.04"]
[Round "1"]
[White "Mikasinski"]
[Black "GigaQuparadze"]
[Result "0-1"]
[WhiteElo "2458"]
[BlackElo "2944"]
[TimeControl "180+1"]
[EndTime "13:47:27 PDT"]
[Termination "GigaQuparadze won by resignation"]

1. e4 {[%clk 0:03:00.9]} 1... c5 {[%clk 0:02:59.5]} 2. Nf3 {[%clk 0:03:01]} 2...
e6 {[%clk 0:02:59.7]} 3. d4 {[%clk 0:03:01.1]} 3... cxd4 {[%clk 0:03:00.6]} 4.
Nxd4 {[%clk 0:03:01.7]} 4... a6 {[%clk 0:03:01.1]} 5. Nc3 {[%clk 0:03:02.2]}
5... b5 {[%clk 0:03:00.9]} 6. Be2 {[%clk 0:03:00.5]} 6... Bb7 {[%clk 0:03:00.3]}
7. Bf3 {[%clk 0:03:00.6]} 7... Nc6 {[%clk 0:03:00]} 8. O-O {[%clk 0:02:56.5]}
8... Nxd4 {[%clk 0:02:59.9]} 9. Qxd4 {[%clk 0:02:56.3]} 9... Ne7 {[%clk
0:03:00.4]} 10. Bg5 {[%clk 0:02:54.5]} 10... f6 {[%clk 0:02:51.1]} 11. Bh5+
{[%clk 0:02:50.7]} 11... Ng6 {[%clk 0:02:50.8]} 12. Be3 {[%clk 0:02:47.9]} 12...
Qc7 {[%clk 0:02:50.1]} 13. Rad1 {[%clk 0:02:46.5]} 13... Rc8 {[%clk 0:02:45.8]}
14. f4 {[%clk 0:02:46.1]} 14... Bc5 {[%clk 0:02:45.2]} 15. Qxc5 {[%clk
0:02:45.6]} 15... Qxc5 {[%clk 0:02:45.2]} 16. Bxc5 {[%clk 0:02:46.2]} 16... Rxc5
{[%clk 0:02:45.7]} 17. f5 {[%clk 0:02:46.8]} 17... Ke7 {[%clk 0:02:46.1]} 18.
Rf3 {[%clk 0:02:29]} 18... Ne5 {[%clk 0:02:41.2]} 19. Rg3 {[%clk 0:02:27.6]}
19... g6 {[%clk 0:02:41.4]} 20. Be2 {[%clk 0:02:13]} 20... b4 {[%clk 0:02:40.1]}
21. Na4 {[%clk 0:01:51.8]} 0-1

[Event "*** SCC Grand Prix: Titled Tuesday Blitz"]
[Site "Chess.com"]
[Date "2020.08.04"]
[Round "1"]
[White "Carnivoras"]
[Black "ahachess"]
[Result "1-0"]
[WhiteElo "2597"]
[BlackElo "2259"]
[TimeControl "180+1"]
[EndTime "13:48:00 PDT"]
[Termination "Carnivoras won by resignation"]

1. d4 {[%clk 0:03:00.9]} 1... d5 {[%clk 0:02:57.7]} 2. c4 {[%clk 0:03:00.3]}
2... e6 {[%clk 0:02:57.8]} 3. Nc3 {[%clk 0:02:59.2]} 3... c6 {[%clk 0:02:58.3]}
4. e3 {[%clk 0:02:56.4]} 4... Nf6 {[%clk 0:02:57]} 5. Nf3 {[%clk 0:02:53.9]}
5... Nbd7 {[%clk 0:02:56.8]} 6. Qc2 {[%clk 0:02:53.6]} 6... Bd6 {[%clk 0:02:54]}
7. b3 {[%clk 0:02:54.1]} 7... Qe7 {[%clk 0:02:49]} 8. Bb2 {[%clk 0:02:53.7]}
8... O-O {[%clk 0:02:47.4]} 9. Bd3 {[%clk 0:02:53.5]} 9... b6 {[%clk 0:02:42.8]}
10. O-O {[%clk 0:02:53.5]} 10... Bb7 {[%clk 0:02:43]} 11. Rad1 {[%clk
0:02:45.3]} 11... Rac8 {[%clk 0:02:41.3]} 12. Qb1 {[%clk 0:02:44.5]} 12... Rfe8
{[%clk 0:02:34.6]} 13. Rfe1 {[%clk 0:02:44.4]} 13... dxc4 {[%clk 0:02:32.3]} 14.
bxc4 {[%clk 0:02:43.5]} 14... e5 {[%clk 0:02:28.7]} 15. Ne4 {[%clk 0:02:40.9]}
15... Bb8 {[%clk 0:02:24.3]} 16. Nxf6+ {[%clk 0:02:38.6]} 16... Nxf6 {[%clk
0:02:15.8]} 17. dxe5 {[%clk 0:02:38.6]} 17... Nd7 {[%clk 0:02:02.5]} 18. Bxh7+
{[%clk 0:02:31.9]} 18... Kf8 {[%clk 0:02:02.6]} 19. Bf5 {[%clk 0:02:23.9]} 19...
Rcd8 {[%clk 0:02:02.6]} 20. Bxd7 {[%clk 0:02:23.9]} 20... Rxd7 {[%clk
0:02:01.9]} 21. Qh7 {[%clk 0:02:24.3]} 1-0

[Event "*** SCC Grand Prix: Titled Tuesday Blitz"]
[Site "Chess.com"]
[Date "2020.08.04"]
[Round "1"]
[White "2007checkmate"]
[Black "kakarot_001"]
[Result "0-1"]
[WhiteElo "2433"]
[BlackElo "2878"]
[TimeControl "180+1"]
[EndTime "13:48:15 PDT"]
[Termination "kakarot_001 won by resignation"]

1. Nc3 {[%clk 0:03:00.9]} 1... d5 {[%clk 0:02:58.5]} 2. d4 {[%clk 0:02:58.8]}
2... Nf6 {[%clk 0:02:58.1]} 3. Bf4 {[%clk 0:02:59.1]} 3... Bf5 {[%clk
0:02:57.9]} 4. f3 {[%clk 0:02:59.1]} 4... c6 {[%clk 0:02:57.7]} 5. g4 {[%clk
0:02:59.3]} 5... Bg6 {[%clk 0:02:57.4]} 6. h4 {[%clk 0:02:59.9]} 6... h5 {[%clk
0:02:54.4]} 7. g5 {[%clk 0:02:59.8]} 7... Nfd7 {[%clk 0:02:54.4]} 8. e4 {[%clk
0:03:00.5]} 8... e6 {[%clk 0:02:49.9]} 9. Bd3 {[%clk 0:02:59]} 9... Qb6 {[%clk
0:02:48.2]} 10. exd5 {[%clk 0:02:57.2]} 10... Bxd3 {[%clk 0:02:27.9]} 11. Qxd3
{[%clk 0:02:21.8]} 11... cxd5 {[%clk 0:02:27.1]} 12. Qb5 {[%clk 0:02:21.2]}
12... Qxd4 {[%clk 0:02:14.4]} 13. Qxb7 {[%clk 0:02:04.5]} 13... Qxf4 {[%clk
0:02:14.2]} 14. Qxa8 {[%clk 0:02:04.6]} 14... Qg3+ {[%clk 0:02:14.1]} 15. Kf1
{[%clk 0:01:59.2]} 15... Bc5 {[%clk 0:02:11.8]} 16. Nd1 {[%clk 0:01:52.6]} 16...
O-O {[%clk 0:02:08.6]} 17. Qb7 {[%clk 0:01:47.5]} 17... f6 {[%clk 0:02:08.8]}
18. Rh3 {[%clk 0:01:28.5]} 18... Qxg1+ {[%clk 0:02:06.5]} 19. Ke2 {[%clk
0:01:28.9]} 19... Qg2+ {[%clk 0:02:06.8]} 0-1

[Event "*** SCC Grand Prix: Titled Tuesday Blitz"]
[Site "Chess.com"]
[Date "2020.08.04"]
[Round "1"]
[White "Keithonsky"]
[Black "DrMamaliga"]
[Result "1-0"]
[WhiteElo "2552"]
[BlackElo "2198"]
[TimeControl "180+1"]
[EndTime "13:48:27 PDT"]
[Termination "Keithonsky won by resignation"]

1. d4 {[%clk 0:03:00.9]} 1... Nf6 {[%clk 0:02:59.4]} 2. c4 {[%clk 0:03:01.3]}
2... e6 {[%clk 0:02:59]} 3. Nf3 {[%clk 0:03:01]} 3... b6 {[%clk 0:02:58.7]} 4.
g3 {[%clk 0:03:01.3]} 4... c6 {[%clk 0:02:59]} 5. Nbd2 {[%clk 0:02:58.9]} 5...
d5 {[%clk 0:02:59.9]} 6. Bg2 {[%clk 0:02:59.8]} 6... Be7 {[%clk 0:02:59.4]} 7.
O-O {[%clk 0:03:00.3]} 7... O-O {[%clk 0:03:00]} 8. Qc2 {[%clk 0:03:01]} 8...
Bb7 {[%clk 0:02:57.7]} 9. e4 {[%clk 0:03:01.3]} 9... Na6 {[%clk 0:02:57.6]} 10.
e5 {[%clk 0:02:59.8]} 10... Nd7 {[%clk 0:02:57.4]} 11. cxd5 {[%clk 0:03:00.3]}
11... cxd5 {[%clk 0:02:52.9]} 12. Re1 {[%clk 0:02:59.6]} 12... Nb4 {[%clk
0:02:51.4]} 13. Qb1 {[%clk 0:02:58.1]} 13... Ba6 {[%clk 0:02:51.4]} 14. Bf1
{[%clk 0:02:58.6]} 14... Bxf1 {[%clk 0:02:46.9]} 15. Nxf1 {[%clk 0:02:59.5]}
15... Rc8 {[%clk 0:02:47.2]} 16. Ne3 {[%clk 0:02:57.1]} 16... Qc7 {[%clk
0:02:42.6]} 17. Re2 {[%clk 0:02:53.3]} 17... Qb7 {[%clk 0:02:17.5]} 18. a3
{[%clk 0:02:52.4]} 18... Qa6 {[%clk 0:02:16.8]} 19. Rd2 {[%clk 0:02:47.6]} 19...
Nc6 {[%clk 0:02:14.3]} 20. b4 {[%clk 0:02:47.9]} 20... b5 {[%clk 0:02:12.1]} 21.
Rb2 {[%clk 0:02:38.9]} 21... Nb6 {[%clk 0:02:11.3]} 22. Bd2 {[%clk 0:02:39.1]}
22... Nc4 {[%clk 0:02:10.6]} 23. Rb3 {[%clk 0:02:38.4]} 23... Nxd2 {[%clk
0:02:09.1]} 24. Nxd2 {[%clk 0:02:37.8]} 24... Nxd4 {[%clk 0:02:09.7]} 25. Rd3
{[%clk 0:02:37.2]} 25... Nc6 {[%clk 0:02:07.5]} 26. f4 {[%clk 0:02:34.6]} 26...
Qb6 {[%clk 0:02:06.5]} 27. Kg2 {[%clk 0:02:34.3]} 27... Rc7 {[%clk 0:02:04.4]}
28. Nb3 {[%clk 0:02:33.5]} 28... Rfc8 {[%clk 0:02:00.5]} 29. Qb2 {[%clk
0:02:30.8]} 29... d4 {[%clk 0:01:59.3]} 30. Nxd4 {[%clk 0:02:26]} 30... Nxd4
{[%clk 0:01:53.6]} 31. Qxd4 {[%clk 0:02:26.9]} 31... Qb7+ {[%clk 0:01:52.8]} 32.
Kf2 {[%clk 0:02:19.6]} 32... Rd8 {[%clk 0:01:47]} 33. Qxd8+ {[%clk 0:02:18.2]}
1-0

[Event "*** SCC Grand Prix: Titled Tuesday Blitz"]
[Site "Chess.com"]
[Date "2020.08.04"]
[Round "1"]
[White "igorkovalenko"]
[Black "Sadykov_Ramil"]
[Result "1-0"]
[WhiteElo "2889"]
[BlackElo "2448"]
[TimeControl "180+1"]
[EndTime "13:48:55 PDT"]
[Termination "igorkovalenko won by resignation"]

1. d4 {[%clk 0:03:00.9]} 1... Nf6 {[%clk 0:02:57.1]} 2. Nf3 {[%clk 0:03:01.8]}
2... d5 {[%clk 0:02:56.5]} 3. c4 {[%clk 0:03:01.7]} 3... e6 {[%clk 0:02:56.7]}
4. Nc3 {[%clk 0:03:02.6]} 4... c6 {[%clk 0:02:56.3]} 5. e3 {[%clk 0:03:03]} 5...
Nbd7 {[%clk 0:02:56.1]} 6. Qc2 {[%clk 0:03:03.9]} 6... Bd6 {[%clk 0:02:55.3]} 7.
b3 {[%clk 0:03:04.5]} 7... O-O {[%clk 0:02:53.8]} 8. Bb2 {[%clk 0:03:05.4]} 8...
e5 {[%clk 0:02:36.1]} 9. Be2 {[%clk 0:03:04.3]} 9... e4 {[%clk 0:02:26.8]} 10.
Nd2 {[%clk 0:03:02]} 10... a6 {[%clk 0:02:20.2]} 11. g4 {[%clk 0:02:49.6]} 11...
Qa5 {[%clk 0:00:48.7]} 12. g5 {[%clk 0:02:44.7]} 12... Ne8 {[%clk 0:00:48.2]}
13. h4 {[%clk 0:02:43.6]} 13... f6 {[%clk 0:00:41.9]} 14. cxd5 {[%clk
0:02:43.3]} 14... cxd5 {[%clk 0:00:41.7]} 15. Nxd5 {[%clk 0:02:43.3]} 15... fxg5
{[%clk 0:00:29]} 16. Bc3 {[%clk 0:02:43.4]} 16... Qd8 {[%clk 0:00:21.6]} 17.
Nxe4 {[%clk 0:02:43.6]} 1-0

[Event "*** SCC Grand Prix: Titled Tuesday Blitz"]
[Site "Chess.com"]
[Date "2020.08.04"]
[Round "1"]
[White "davigator"]
[Black "Rud_Makarian"]
[Result "0-1"]
[WhiteElo "2298"]
[BlackElo "2653"]
[TimeControl "180+1"]
[EndTime "13:49:01 PDT"]
[Termination "Rud_Makarian won by resignation"]

1. e4 {[%clk 0:02:57.3]} 1... e5 {[%clk 0:02:58.5]} 2. Nf3 {[%clk 0:02:56.5]}
2... Nc6 {[%clk 0:02:59]} 3. Bc4 {[%clk 0:02:56.4]} 3... Bc5 {[%clk 0:02:58]} 4.
c3 {[%clk 0:02:55.8]} 4... Nf6 {[%clk 0:02:57]} 5. d3 {[%clk 0:02:56.3]} 5... d6
{[%clk 0:02:56.8]} 6. O-O {[%clk 0:02:54.2]} 6... a5 {[%clk 0:02:56.4]} 7. Bb5
{[%clk 0:02:53]} 7... Bb6 {[%clk 0:02:53.4]} 8. a4 {[%clk 0:02:52.7]} 8... h6
{[%clk 0:02:52.3]} 9. Nbd2 {[%clk 0:02:52.4]} 9... Bd7 {[%clk 0:02:51.5]} 10.
Nc4 {[%clk 0:02:51.9]} 10... Ba7 {[%clk 0:02:50.9]} 11. Ne3 {[%clk 0:02:51.3]}
11... Ne7 {[%clk 0:02:50]} 12. Bxd7+ {[%clk 0:02:50.7]} 12... Qxd7 {[%clk
0:02:50.9]} 13. h3 {[%clk 0:02:48.6]} 13... Ng6 {[%clk 0:02:49.9]} 14. Nf5
{[%clk 0:02:47.9]} 14... O-O {[%clk 0:02:47.2]} 15. Re1 {[%clk 0:02:41.8]} 15...
Kh7 {[%clk 0:02:43.4]} 16. Be3 {[%clk 0:02:37.2]} 16... Bxe3 {[%clk 0:02:41.8]}
17. Rxe3 {[%clk 0:02:37.2]} 17... Rae8 {[%clk 0:02:39.3]} 18. Qb3 {[%clk
0:02:31.5]} 18... c6 {[%clk 0:02:38.1]} 19. Rd1 {[%clk 0:02:30.9]} 19... d5
{[%clk 0:02:37.5]} 20. g4 {[%clk 0:02:20.4]} 20... Nf4 {[%clk 0:02:36.8]} 21.
Kh2 {[%clk 0:02:20]} 21... g6 {[%clk 0:02:35.5]} 22. Ng3 {[%clk 0:02:17.5]}
22... d4 {[%clk 0:02:01.2]} 23. cxd4 {[%clk 0:01:48]} 23... exd4 {[%clk
0:02:02.1]} 24. Ree1 {[%clk 0:01:48.2]} 24... Nxg4+ {[%clk 0:02:02.1]} 25. Kg1
{[%clk 0:01:33.8]} 25... Nxh3+ {[%clk 0:02:01.4]} 26. Kg2 {[%clk 0:01:34.1]}
26... Nf4+ {[%clk 0:01:54.2]} 27. Kf1 {[%clk 0:01:30.6]} 27... Nh2+ {[%clk
0:01:48.8]} 28. Kg1 {[%clk 0:01:28.7]} 28... Nxf3+ {[%clk 0:01:47.7]} 0-1

[Event "*** SCC Grand Prix: Titled Tuesday Blitz"]
[Site "Chess.com"]
[Date "2020.08.04"]
[Round "1"]
[White "saisree"]
[Black "Dr-Bassem"]
[Result "0-1"]
[WhiteElo "2403"]
[BlackElo "2794"]
[TimeControl "180+1"]
[EndTime "13:49:16 PDT"]
[Termination "Dr-Bassem won by checkmate"]

1. Nf3 {[%clk 0:02:59.2]} 1... Nf6 {[%clk 0:02:54]} 2. b3 {[%clk 0:02:57.1]}
2... g6 {[%clk 0:02:48.8]} 3. Bb2 {[%clk 0:02:56.2]} 3... Bg7 {[%clk 0:02:49.5]}
4. e3 {[%clk 0:02:54.3]} 4... O-O {[%clk 0:02:48.3]} 5. c4 {[%clk 0:02:53.7]}
5... d6 {[%clk 0:02:48.4]} 6. Be2 {[%clk 0:02:51.9]} 6... e5 {[%clk 0:02:48]} 7.
O-O {[%clk 0:02:48.8]} 7... Re8 {[%clk 0:02:43.1]} 8. d4 {[%clk 0:02:44.2]} 8...
e4 {[%clk 0:02:42.8]} 9. Nfd2 {[%clk 0:02:43.9]} 9... h5 {[%clk 0:02:43.3]} 10.
Nc3 {[%clk 0:02:40.1]} 10... Bf5 {[%clk 0:02:43.8]} 11. b4 {[%clk 0:02:36.1]}
11... Nbd7 {[%clk 0:02:43.9]} 12. c5 {[%clk 0:02:33.7]} 12... d5 {[%clk
0:02:43.7]} 13. Qb3 {[%clk 0:02:31.1]} 13... Nf8 {[%clk 0:02:40.1]} 14. b5
{[%clk 0:02:27.7]} 14... c6 {[%clk 0:02:35.6]} 15. bxc6 {[%clk 0:02:23.2]} 15...
bxc6 {[%clk 0:02:36.5]} 16. Qa4 {[%clk 0:02:21.7]} 16... Qd7 {[%clk 0:02:35.2]}
17. Nb3 {[%clk 0:02:18.9]} 17... N8h7 {[%clk 0:02:28.8]} 18. Na5 {[%clk
0:02:16.3]} 18... Rac8 {[%clk 0:02:29.3]} 19. Ba3 {[%clk 0:02:08.5]} 19... h4
{[%clk 0:02:23.7]} 20. Rfb1 {[%clk 0:02:08.7]} 20... h3 {[%clk 0:02:23.6]} 21.
Rb7 {[%clk 0:01:47.7]} 21... Qe6 {[%clk 0:02:22.8]} 22. g3 {[%clk 0:01:42.3]}
22... Ng5 {[%clk 0:02:22.1]} 23. Rab1 {[%clk 0:01:17.5]} 23... Bg4 {[%clk
0:02:21.9]} 24. Bf1 {[%clk 0:01:17.1]} 24... Bh5 {[%clk 0:02:08.2]} 25. Ne2
{[%clk 0:01:07.4]} 25... Nf3+ {[%clk 0:02:06.6]} 26. Kh1 {[%clk 0:01:07]} 26...
Ng4 {[%clk 0:02:07.2]} 27. Bxh3 {[%clk 0:01:00]} 27... Nxf2+ {[%clk 0:02:06.5]}
28. Kg2 {[%clk 0:01:00.6]} 28... Qxh3+ {[%clk 0:02:00.1]} 29. Kxf2 {[%clk
0:01:00.4]} 29... Qxh2+ {[%clk 0:02:00.7]} 30. Kf1 {[%clk 0:01:00.6]} 30... Nd2+
{[%clk 0:02:00.6]} 31. Ke1 {[%clk 0:00:59.2]} 31... Qxe2# {[%clk 0:02:01.5]} 0-1

[Event "*** SCC Grand Prix: Titled Tuesday Blitz"]
[Site "Chess.com"]
[Date "2020.08.04"]
[Round "1"]
[White "binbin239"]
[Black "Mbneu"]
[Result "0-1"]
[WhiteElo "2551"]
[BlackElo "2253"]
[TimeControl "180+1"]
[EndTime "13:49:17 PDT"]
[Termination "Mbneu won by resignation"]

1. d4 {[%clk 0:03:00.9]} 1... Nf6 {[%clk 0:02:58.3]} 2. c4 {[%clk 0:03:00.8]}
2... c5 {[%clk 0:02:59]} 3. Nf3 {[%clk 0:03:00.8]} 3... cxd4 {[%clk 0:02:57.5]}
4. Nxd4 {[%clk 0:03:00.7]} 4... e5 {[%clk 0:02:57.8]} 5. Nb5 {[%clk 0:03:00.3]}
5... d5 {[%clk 0:02:58.2]} 6. cxd5 {[%clk 0:02:59.7]} 6... Bc5 {[%clk
0:02:57.7]} 7. N5c3 {[%clk 0:02:59.6]} 7... O-O {[%clk 0:02:54.6]} 8. g3 {[%clk
0:02:59.4]} 8... e4 {[%clk 0:02:50.6]} 9. Bg2 {[%clk 0:02:58.4]} 9... e3 {[%clk
0:02:44.6]} 10. f4 {[%clk 0:02:37.8]} 10... Ng4 {[%clk 0:02:38.5]} 11. O-O
{[%clk 0:02:37.1]} 11... Nf2 {[%clk 0:02:37.3]} 12. Qc2 {[%clk 0:02:23.1]} 12...
Bh3 {[%clk 0:02:32]} 13. b4 {[%clk 0:02:04.7]} 13... Bd4 {[%clk 0:02:11.6]} 14.
Bxh3 {[%clk 0:01:43.9]} 14... Nxh3+ {[%clk 0:02:10.1]} 15. Kg2 {[%clk
0:01:43.9]} 15... Nf2 {[%clk 0:02:02.5]} 16. Qb3 {[%clk 0:01:30]} 16... Qd7
{[%clk 0:01:53.7]} 17. Rxf2 {[%clk 0:01:28.4]} 17... exf2 {[%clk 0:01:51.1]} 18.
e3 {[%clk 0:01:25.6]} 18... Qh3+ {[%clk 0:01:46.4]} 19. Kxf2 {[%clk 0:01:17.6]}
19... Qxh2+ {[%clk 0:01:45.4]} 20. Kf3 {[%clk 0:01:16.7]} 20... Qh1+ {[%clk
0:01:39.6]} 21. Ke2 {[%clk 0:01:16.7]} 21... Qxc1 {[%clk 0:01:33.9]} 22. d6
{[%clk 0:01:12.8]} 22... Bxc3 {[%clk 0:01:31.2]} 0-1

[Event "*** SCC Grand Prix: Titled Tuesday Blitz"]
[Site "Chess.com"]
[Date "2020.08.04"]
[Round "1"]
[White "RestartingChess"]
[Black "Sn00pPawn"]
[Result "1-0"]
[WhiteElo "2496"]
[BlackElo "1949"]
[TimeControl "180+1"]
[EndTime "13:49:35 PDT"]
[Termination "RestartingChess won by resignation"]

1. e4 {[%clk 0:03:00.9]} 1... c5 {[%clk 0:02:59.4]} 2. Nf3 {[%clk 0:03:00.8]}
2... d6 {[%clk 0:02:59.6]} 3. Bb5+ {[%clk 0:03:00.8]} 3... Bd7 {[%clk
0:02:59.3]} 4. c4 {[%clk 0:03:01.7]} 4... Nc6 {[%clk 0:02:52.9]} 5. Nc3 {[%clk
0:03:01.6]} 5... g6 {[%clk 0:02:53.3]} 6. d3 {[%clk 0:03:02]} 6... Bg7 {[%clk
0:02:52.7]} 7. Be3 {[%clk 0:03:02.5]} 7... Nd4 {[%clk 0:02:47.2]} 8. Bxd7+
{[%clk 0:02:59.8]} 8... Qxd7 {[%clk 0:02:48.1]} 9. Bxd4 {[%clk 0:02:50.2]} 9...
cxd4 {[%clk 0:02:47.1]} 10. Nb5 {[%clk 0:02:50.8]} 10... e5 {[%clk 0:02:25.5]}
11. Qa4 {[%clk 0:02:47.4]} 11... Kf8 {[%clk 0:02:15.3]} 12. Qa3 {[%clk
0:02:38.4]} 12... Ke7 {[%clk 0:02:07.8]} 13. Qa5 {[%clk 0:02:37]} 13... Nf6
{[%clk 0:02:03.1]} 14. Qb4 {[%clk 0:02:25]} 14... a6 {[%clk 0:01:58.9]} 15. Nxe5
{[%clk 0:02:11]} 15... Qe6 {[%clk 0:01:57.5]} 16. Nxd4 {[%clk 0:02:11.2]} 16...
Qxe5 {[%clk 0:01:53]} 17. Qxb7+ {[%clk 0:02:11.4]} 17... Nd7 {[%clk 0:01:45.6]}
18. Nc6+ {[%clk 0:02:10.6]} 18... Ke6 {[%clk 0:01:45.5]} 19. Nxe5 {[%clk
0:02:10.4]} 19... Bxe5 {[%clk 0:01:44.8]} 20. Qd5+ {[%clk 0:02:10.5]} 20... Ke7
{[%clk 0:01:44.9]} 21. O-O {[%clk 0:02:04.9]} 21... Rab8 {[%clk 0:01:31.3]} 22.
Rab1 {[%clk 0:02:02.8]} 22... Rb6 {[%clk 0:01:28.2]} 23. f4 {[%clk 0:02:00.3]}
23... Bxb2 {[%clk 0:01:24]} 24. e5 {[%clk 0:01:45.3]} 24... Rhb8 {[%clk
0:01:22.7]} 25. exd6+ {[%clk 0:01:43.5]} 25... Kf8 {[%clk 0:01:23.3]} 26. c5
{[%clk 0:01:38.3]} 26... Rb5 {[%clk 0:01:18.8]} 27. Rxb2 {[%clk 0:01:38.8]}
27... Rxb2 {[%clk 0:01:17.6]} 28. Qd4 {[%clk 0:01:39.7]} 28... Kg8 {[%clk
0:01:14.6]} 29. c6 {[%clk 0:01:39.5]} 29... Nf8 {[%clk 0:01:11.7]} 30. c7 {[%clk
0:01:36.4]} 1-0